fUST/lending_fUST_20250220
["ID","MTS","AMOUNT","RATE_DAILY","PERIOD"]
[353749744,1740009045796,-500.0,0.00013863,2]
[353749745,1740009045804,-500.0,0.00013863,2]
[353749746,1740009045812,-500.0,0.00013863,2]
[353749747,1740009045820,-500.0,0.00013863,2]
[353749748,1740009045828,-500.0,0.00013863,2]
[353749749,1740009045835,-500.0,0.00013863,2]
[353749750,1740009045844,-580.87,0.00013863,2]
[353749751,1740009045852,-500.0,0.00013863,2]
[353749752,1740009045859,-500.0,0.00013863,2]
[353749753,1740009045865,-500.0,0.00013863,2]
[353749754,1740009045872,-500.0,0.00013863,2]
[353749755,1740009045878,-16515.76,0.00013863,2]
[353749756,1740009045886,-500.0,0.00013863,2]
[353749757,1740009045895,-615.53,0.00013863,2]
[353749758,1740009045904,-500.0,0.00013863,2]
[353749759,1740009045913,-607.15,0.00013863,2]
[353749760,1740009045922,-500.0,0.00013863,2]
[353749761,1740009045930,-500.0,0.00013863,2]
[353749762,1740009045940,-500.0,0.00013863,2]
[353749763,1740009045949,-500.0,0.00013863,2]
[353749764,1740009045958,-500.0,0.00013863,2]
[353749765,1740009045967,-500.0,0.00013863,2]
[353749766,1740009045976,-4607.42,0.00013863,2]
[353749767,1740009045985,-500.0,0.00013863,2]
[353749768,1740009045994,-657.55,0.00013863,2]
[353749769,1740009046003,-500.0,0.00013863,2]
[353749770,1740009046012,-500.0,0.00013863,2]
[353749772,1740009046022,-679.91,0.00013863,2]
[353749773,1740009046031,-500.0,0.00013863,2]
[353749774,1740009046041,-500.0,0.00013863,2]
[353749776,1740009046051,-500.0,0.00013863,2]
[353749777,1740009046061,-1021.52,0.00013863,2]
[353749778,1740009046070,-500.0,0.00013863,2]
[353749779,1740009046080,-1884.79,0.00013863,2]
[353749780,1740009046089,-500.0,0.00013863,2]
[353749782,1740009046098,-500.0,0.00013863,2]
[353749783,1740009046107,-500.0,0.00013863,2]
[353749784,1740009046116,-500.0,0.00013863,2]
[353749785,1740009046125,-500.0,0.00013863,2]
[353749786,1740009046134,-500.0,0.00013863,2]
[353749787,1740009046143,-500.0,0.00013863,2]
[353749788,1740009046152,-1274.52,0.00013863,2]
[353749789,1740009046161,-500.0,0.00013863,2]
[353749790,1740009046170,-1158.62,0.00013863,2]
[353749791,1740009046178,-760.75,0.00013863,2]
[353749792,1740009046187,-500.0,0.00013863,2]
[353749793,1740009046196,-500.0,0.00013863,2]
[353749794,1740009046205,-500.0,0.00013863,2]
[353749795,1740009046215,-186.96,0.00013863,2]
[353749796,1740009046228,-606.15,0.00013863,2]
[353749797,1740009046237,-500.0,0.00013863,2]
[353749798,1740009046246,-500.0,0.00013863,2]
[353749799,1740009046255,-500.0,0.00013863,2]
[353749800,1740009046264,-500.0,0.00013863,2]
[353749801,1740009046274,-500.0,0.00013863,2]
[353749802,1740009046284,-500.0,0.00013863,2]
[353749803,1740009046293,-626.47486817,0.00013863,2]
[353749804,1740009046302,-500.0,0.00013863,2]
[353749805,1740009046312,-500.0,0.00013863,2]
[353749806,1740009046322,-372.74,0.00013863,2]
[353749807,1740009046332,-500.0,0.00013863,2]
[353749808,1740009046342,-646.82,0.00013863,2]
[353749809,1740009046352,-205.50899377,0.00013863,2]
[353749810,1740009046362,-500.0,0.00013863,2]
[353749811,1740009046372,-500.0,0.00013863,2]
[353749812,1740009046383,-500.0,0.00013863,2]
[353749813,1740009046392,-500.0,0.00013863,2]
[353749814,1740009046402,-704.58,0.00013863,2]
[353749815,1740009046411,-500.0,0.00013863,2]
[353749816,1740009046420,-1667.33,0.00013863,2]
[353749817,1740009046429,-500.0,0.00013863,2]
[353749818,1740009046438,-504.47,0.00013863,2]
[353749819,1740009046447,-500.0,0.00013863,2]
[353749820,1740009046456,-500.0,0.00013863,2]
[353749821,1740009046465,-500.0,0.00013863,2]
[353749823,1740009046474,-6048.84,0.00013863,2]
[353749825,1740009046484,-500.0,0.00013863,2]
[353749827,1740009046493,-500.0,0.00013863,2]
[353749829,1740009046502,-500.0,0.00013863,2]
[353749831,1740009046510,-500.0,0.00013863,2]
[353749833,1740009046519,-500.0,0.00013863,2]
[353749835,1740009046529,-500.0,0.00013863,2]
[353749837,1740009046538,-290.56435506,0.00013863,2]
[353749839,1740009046546,-1287.11,0.00013863,2]
[353749841,1740009046555,-890.41,0.00013863,2]
[353749843,1740009046565,-500.0,0.00013863,2]
[353749845,1740009046574,-500.0,0.00013863,2]
[353749847,1740009046583,-500.0,0.00013863,2]
[353749849,1740009046592,-500.0,0.00013863,2]
[353749851,1740009046601,-551.04456951,0.00013863,2]
[353749853,1740009046610,-500.0,0.00013863,2]
[353749855,1740009046618,-420.0,0.00013929,2]
[353749857,1740009046625,-500.0,0.00013945,2]
[353749859,1740009046634,-500.0,0.00013945,2]
[353749861,1740009046642,-500.0,0.00013945,2]
[353749863,1740009046651,-500.0,0.00013945,2]
[353749864,1740009046660,-500.0,0.00013945,2]
[353749865,1740009046669,-500.0,0.00013945,2]
[353749866,1740009046678,-500.0,0.00013945,2]
[353749867,1740009046687,-500.0,0.00013945,2]
[353749868,1740009046695,-500.0,0.00013945,2]
[353749869,1740009046704,-500.0,0.00013945,2]
[353749870,1740009046713,-500.0,0.00013945,2]
[353749871,1740009046722,-500.0,0.00013945,2]
[353749872,1740009046731,-500.0,0.00013945,2]
[353749873,1740009046740,-500.0,0.00013945,2]
[353749874,1740009046749,-500.0,0.00013945,2]
[353749875,1740009046758,-500.0,0.00013945,2]
[353749876,1740009046767,-500.0,0.00013945,2]
[353749877,1740009046775,-500.0,0.00013945,2]
[353749878,1740009046784,-500.0,0.00013945,2]
[353749879,1740009046793,-500.0,0.00013945,2]
[353749880,1740009046802,-500.0,0.00013945,2]
[353749881,1740009046812,-500.0,0.00013945,2]
[353749882,1740009046820,-580.87,0.00013945,2]
[353749883,1740009046830,-500.0,0.00013945,2]
[353749884,1740009046839,-16515.76,0.00013945,2]
[353749885,1740009046848,-500.0,0.00013945,2]
[353749886,1740009046857,-615.53,0.00013945,2]
[353749887,1740009046866,-500.0,0.00013945,2]
[353749888,1740009046875,-607.15,0.00013945,2]
[353749889,1740009046884,-500.0,0.00013945,2]
[353749890,1740009046894,-500.0,0.00013945,2]
[353749891,1740009046903,-500.0,0.00013945,2]
[353749892,1740009046912,-500.0,0.00013945,2]
[353749893,1740009046922,-500.0,0.00013945,2]
[353749894,1740009046933,-4607.42,0.00013945,2]
[353749895,1740009046943,-500.0,0.00013945,2]
[353749896,1740009046952,-657.55,0.00013945,2]
[353749897,1740009046962,-679.91,0.00013945,2]
[353749898,1740009046971,-500.0,0.00013945,2]
[353749899,1740009046981,-500.0,0.00013945,2]
[353749900,1740009046991,-1021.52,0.00013945,2]
[353749901,1740009047001,-500.0,0.00013945,2]
[353749902,1740009047010,-1884.79,0.00013945,2]
[353749903,1740009047019,-500.0,0.00013945,2]
[353749904,1740009047028,-305.80653779,0.00013945,2]
[353749905,1740009047037,-500.0,0.00013945,2]
[353749906,1740009047046,-1274.52,0.00013945,2]
[353749907,1740009047055,-500.0,0.00013945,2]
[353749908,1740009047064,-1158.62,0.00013945,2]
[353749909,1740009047073,-760.75,0.00013945,2]
[353749910,1740009047082,-500.0,0.00013945,2]
[353749911,1740009047090,-500.0,0.00013945,2]
[353749912,1740009047099,-606.15,0.00013945,2]
[353749913,1740009047109,-500.0,0.00013945,2]
[353749914,1740009047118,-505.5833699,0.00013945,2]
[353749915,1740009047128,-500.0,0.00013945,2]
[353749916,1740009047137,-500.0,0.00013945,2]
[353749917,1740009047147,-500.0,0.00013945,2]
[353749918,1740009047156,-500.0,0.00013945,2]
[353749919,1740009047164,-500.0,0.00013945,2]
[353749920,1740009047172,-500.0,0.00013945,2]
[353749921,1740009047181,-500.0,0.00013945,2]
[353749922,1740009047190,-646.82,0.00013945,2]
[353749923,1740009047199,-505.15427475,0.00013945,2]
[353749924,1740009047208,-479.1797111,0.00013945,2]
[353749925,1740009047217,-704.58,0.00013945,2]
[353749926,1740009047229,-500.0,0.00013945,2]
[353749927,1740009047265,-1667.33,0.00013945,2]
[353749928,1740009047274,-500.0,0.00013945,2]
[353749929,1740009047281,-504.47,0.00013945,2]
[353749930,1740009047290,-500.0,0.00013945,2]
[353749931,1740009047298,-500.0,0.00013945,2]
[353749932,1740009047305,-500.0,0.00013945,2]
[353749933,1740009047313,-6048.84,0.00013945,2]
[353749934,1740009047321,-500.0,0.00013945,2]
[353749935,1740009047328,-500.0,0.00013945,2]
[353749936,1740009047335,-500.0,0.00013945,2]
[353749937,1740009047342,-500.0,0.00013945,2]
[353749938,1740009047348,-500.0,0.00013945,2]
[353749939,1740009047355,-1287.11,0.00013945,2]
[353749940,1740009047361,-890.41,0.00013945,2]
[353749941,1740009047369,-500.0,0.00013945,2]
[353749942,1740009047375,-503.20686269,0.00013945,2]
[353749943,1740009047382,-500.0,0.00013945,2]
[353749944,1740009047390,-500.0,0.00013973,2]
[353749945,1740009047397,-517.07307425,0.00013973,2]
[353749946,1740009047404,-500.0,0.00013973,2]
[353749947,1740009047410,-478.40162192,0.00013973,2]
[353749948,1740009047417,-500.0,0.00013973,2]
[353749949,1740009047425,-500.0,0.00013973,2]
[353749950,1740009047431,-500.0,0.00013973,2]
[353749951,1740009047438,-269.25399374,0.00013973,2]
[353749952,1740009047445,-313.13655774,0.00013973,2]
[353749953,1740009047453,-500.0,0.00013973,2]
[353749954,1740009047460,-225.34799437,0.00013974,2]
[353749955,1740009047467,-107397.06206265,0.00013987,2]
[353749956,1740009047474,-200.0,0.00013988,2]
[353749957,1740009047482,-107397.06206265,0.00013992,2]
[353749958,1740009047489,-107397.06206265,0.00013997,2]
[353749959,1740009047495,-151.0,0.00013998,2]
[353749960,1740009047502,-225.64,0.00014027,2]
[353749961,1740009047509,-500.0,0.00014027,2]
[353749962,1740009047516,-500.0,0.00014027,2]
[353749963,1740009047523,-500.0,0.00014027,2]
[353749964,1740009047529,-500.0,0.00014027,2]
[353749965,1740009047536,-500.0,0.00014027,2]
[353749966,1740009047543,-500.0,0.00014027,2]
[353749967,1740009047550,-396.73717615,0.00014027,2]
[353749968,1740009047557,-500.0,0.00014027,2]
[353749969,1740009047565,-500.0,0.00014027,2]
[353749970,1740009047572,-500.0,0.00014027,2]
[353749971,1740009047579,-500.0,0.00014027,2]
[353749972,1740009047587,-500.0,0.00014027,2]
[353749973,1740009047593,-500.0,0.00014027,2]
[353749974,1740009047600,-500.0,0.00014027,2]
[353749975,1740009047607,-500.0,0.00014027,2]
[353749976,1740009047613,-500.0,0.00014027,2]
[353749977,1740009047619,-500.0,0.00014027,2]
[353749978,1740009047626,-580.87,0.00014027,2]
[353749979,1740009047633,-500.0,0.00014027,2]
[353749980,1740009047639,-16515.76,0.00014027,2]
[353749981,1740009047646,-500.0,0.00014027,2]
[353749982,1740009047652,-615.53,0.00014027,2]
[353749983,1740009047658,-607.15,0.00014027,2]
[353749984,1740009047665,-500.0,0.00014027,2]
[353749985,1740009047671,-500.0,0.00014027,2]
[353749986,1740009047679,-500.0,0.00014027,2]
[353749987,1740009047687,-500.0,0.00014027,2]
[353749988,1740009047696,-4607.42,0.00014027,2]
[353749989,1740009047704,-657.55,0.00014027,2]
[353749990,1740009047713,-679.91,0.00014027,2]
[353749991,1740009047721,-500.0,0.00014027,2]
[353749992,1740009047731,-1021.52,0.00014027,2]
[353749993,1740009047740,-500.0,0.00014027,2]
[353749994,1740009047749,-1884.79,0.00014027,2]
[353749995,1740009047759,-500.0,0.00014027,2]
[353749996,1740009047768,-500.0,0.00014027,2]
[353749997,1740009047778,-1274.52,0.00014027,2]
[353749998,1740009047787,-166.81575571,0.00014027,2]
[353749999,1740009047796,-1158.62,0.00014027,2]
[353750000,1740009047805,-760.75,0.00014027,2]
[353750001,1740009047814,-500.0,0.00014027,2]
[353750002,1740009047823,-500.0,0.00014027,2]
[353750003,1740009047833,-606.15,0.00014027,2]
[353750004,1740009047842,-500.0,0.00014027,2]
[353750005,1740009047851,-500.0,0.00014027,2]
[353750006,1740009047860,-500.0,0.00014027,2]
[353750007,1740009047870,-500.0,0.00014027,2]
[353750008,1740009047880,-500.0,0.00014027,2]
[353750009,1740009047889,-500.0,0.00014027,2]
[353750010,1740009047899,-500.0,0.00014027,2]
[353750011,1740009047909,-500.0,0.00014027,2]
[353750012,1740009047921,-646.82,0.00014027,2]
[353750013,1740009047930,-704.58,0.00014027,2]
[353750014,1740009047939,-500.0,0.00014027,2]
[353750015,1740009047949,-1667.33,0.00014027,2]
[353750016,1740009047958,-504.47,0.00014027,2]
[353750017,1740009047967,-500.0,0.00014027,2]
[353750018,1740009047977,-500.0,0.00014027,2]
[353750019,1740009047987,-6048.84,0.00014027,2]
[353750020,1740009047996,-500.0,0.00014027,2]
[353750021,1740009048006,-500.0,0.00014027,2]
[353750022,1740009048016,-500.0,0.00014027,2]
[353750023,1740009048026,-500.0,0.00014027,2]
[353750024,1740009048036,-500.0,0.00014027,2]
[353750025,1740009048046,-1287.11,0.00014027,2]
[353750026,1740009048056,-890.41,0.00014027,2]
[353750027,1740009048066,-500.0,0.00014027,2]
[353750028,1740009048077,-500.0,0.00014027,2]
[353750029,1740009048086,-284.54556735,0.00014084,2]
[353750030,1740009048096,-38971.19439194,0.00014091,2]
[353750031,1740009048106,-1120.28347369,0.00014091,2]
[353750032,1740009048116,-231457.76126888,0.00014109,5]
[353750033,1740009048125,-22138.05467038,0.00014109,5]
[353750034,1740009048134,-500.0,0.00014109,2]
[353750035,1740009048144,-500.0,0.00014109,2]
[353750036,1740009048155,-500.0,0.00014109,2]
[353750037,1740009048166,-500.0,0.00014109,2]
[353750038,1740009048176,-500.0,0.00014109,2]
[353750039,1740009048186,-500.0,0.00014109,2]
[353750040,1740009048197,-500.0,0.00014109,2]
[353750041,1740009048207,-500.0,0.00014109,2]
[353750042,1740009048218,-500.0,0.00014109,2]
[353750043,1740009048231,-500.0,0.00014109,2]
[353750044,1740009048241,-500.0,0.00014109,2]
[353750045,1740009048251,-500.0,0.00014109,2]
[353750046,1740009048263,-500.0,0.00014109,2]
[353750047,1740009048273,-500.0,0.00014109,2]
[353750048,1740009048283,-500.0,0.00014109,2]
[353750049,1740009048295,-580.87,0.00014109,2]
[353750050,1740009048309,-500.0,0.00014109,2]
[353750051,1740009048319,-16515.76,0.00014109,2]
[353750052,1740009048330,-500.0,0.00014109,2]
[353750053,1740009048341,-615.53,0.00014109,2]
[353750054,1740009048351,-607.15,0.00014109,2]
[353750055,1740009048362,-500.0,0.00014109,2]
[353750056,1740009048372,-500.0,0.00014109,2]
[353750057,1740009048383,-500.0,0.00014109,2]
[353750058,1740009048394,-500.0,0.00014109,2]
[353750059,1740009048404,-4607.42,0.00014109,2]
[353750060,1740009048415,-657.55,0.00014109,2]
[353750061,1740009048424,-679.91,0.00014109,2]
[353750062,1740009048435,-500.0,0.00014109,2]
[353750063,1740009048445,-1021.52,0.00014109,2]
[353750064,1740009048456,-1884.79,0.00014109,2]
[353750065,1740009048467,-500.0,0.00014109,2]
[353750066,1740009048477,-500.0,0.00014109,2]
[353750067,1740009048488,-1274.52,0.00014109,2]
[353750068,1740009048498,-1158.62,0.00014109,2]
[353750069,1740009048509,-760.75,0.00014109,2]
[353750070,1740009048519,-500.0,0.00014109,2]
[353750071,1740009048529,-500.0,0.00014109,2]
[353750072,1740009048540,-606.15,0.00014109,2]
[353750073,1740009048551,-500.0,0.00014109,2]
[353750074,1740009048563,-500.0,0.00014109,2]
[353750075,1740009048574,-500.0,0.00014109,2]
[353750076,1740009048584,-500.0,0.00014109,2]
[353750077,1740009048595,-500.0,0.00014109,2]
[353750078,1740009048606,-500.0,0.00014109,2]
[353750079,1740009048616,-500.0,0.00014109,2]
[353750080,1740009048627,-646.82,0.00014109,2]
[353750081,1740009048638,-704.58,0.00014109,2]
[353750082,1740009048648,-500.0,0.00014109,2]
[353750083,1740009048658,-1667.33,0.00014109,2]
[353750084,1740009048668,-504.47,0.00014109,2]
[353750085,1740009048679,-500.0,0.00014109,2]
[353750086,1740009048689,-500.0,0.00014109,2]
[353750087,1740009048700,-6048.84,0.00014109,2]
[353750088,1740009048709,-500.0,0.00014109,2]
[353750089,1740009048719,-500.0,0.00014109,2]
[353750090,1740009048729,-500.0,0.00014109,2]
[353750091,1740009048739,-500.0,0.00014109,2]
[353750092,1740009048749,-1287.11,0.00014109,2]
[353750093,1740009048759,-890.41,0.00014109,2]
[353750094,1740009048768,-500.0,0.00014109,2]
[353750095,1740009048778,-500.0,0.00014109,2]
[353750096,1740009048789,-153.0,0.00014145,2]
[353750097,1740009048799,-153.0,0.00014145,2]
[353750098,1740009048809,-600.0,0.00014164,2]
[353750099,1740009048819,-500.0,0.00014191,2]
[353750100,1740009048829,-500.0,0.00014191,2]
[353750101,1740009048839,-446.50592814,0.00014191,2]
[353750102,1740009048849,-500.0,0.00014191,2]
[353750103,1740009048859,-500.0,0.00014191,2]
[353750104,1740009048869,-500.0,0.00014191,2]
[353750105,1740009048879,-500.0,0.00014191,2]
[353750106,1740009048889,-500.0,0.00014191,2]
[353750107,1740009048900,-500.0,0.00014191,2]
[353750108,1740009048911,-500.0,0.00014191,2]
[353750109,1740009048920,-500.0,0.00014191,2]
[353750110,1740009048930,-500.0,0.00014191,2]
[353750111,1740009048940,-500.0,0.00014191,2]
[353750112,1740009048950,-500.0,0.00014191,2]
[353750113,1740009048969,-500.0,0.00014191,2]
[353750114,1740009048979,-580.87,0.00014191,2]
[353750115,1740009048990,-500.0,0.00014191,2]
[353750116,1740009049000,-16515.76,0.00014191,2]
[353750117,1740009049009,-615.53,0.00014191,2]
[353750118,1740009049020,-607.15,0.00014191,2]
[353750119,1740009049029,-500.0,0.00014191,2]
[353750120,1740009049039,-500.0,0.00014191,2]
[353750121,1740009049049,-500.0,0.00014191,2]
[353750122,1740009049059,-500.0,0.00014191,2]
[353750123,1740009049069,-4607.42,0.00014191,2]
[353750124,1740009049079,-657.55,0.00014191,2]
[353750125,1740009049089,-679.91,0.00014191,2]
[353750126,1740009049099,-500.0,0.00014191,2]
[353750127,1740009049109,-1021.52,0.00014191,2]
[353750128,1740009049119,-1884.79,0.00014191,2]
[353750129,1740009049129,-500.0,0.00014191,2]
[353750130,1740009049139,-500.0,0.00014191,2]
[353750131,1740009049149,-1274.52,0.00014191,2]
[353750132,1740009049158,-1158.62,0.00014191,2]
[353750133,1740009049167,-760.75,0.00014191,2]
[353750134,1740009049177,-375.94,0.00014191,2]
[353750135,1740009049187,-500.0,0.00014191,2]
[353750136,1740009049197,-606.15,0.00014191,2]
[353750137,1740009049206,-500.0,0.00014191,2]
[353750138,1740009049218,-500.0,0.00014191,2]
[353750139,1740009049231,-500.0,0.00014191,2]
[353750140,1740009049241,-500.0,0.00014191,2]
[353750141,1740009049252,-500.0,0.00014191,2]
[353750142,1740009049264,-646.82,0.00014191,2]
[353750143,1740009049273,-704.58,0.00014191,2]
[353750144,1740009049284,-500.0,0.00014191,2]
[353750145,1740009049295,-1667.33,0.00014191,2]
[353750146,1740009049307,-504.47,0.00014191,2]
[353750147,1740009049318,-500.0,0.00014191,2]
[353750148,1740009049329,-500.0,0.00014191,2]
[353750149,1740009049340,-6048.84,0.00014191,2]
[353750150,1740009049350,-500.0,0.00014191,2]
[353750151,1740009049361,-500.0,0.00014191,2]
[353750152,1740009049371,-500.0,0.00014191,2]
[353750153,1740009049382,-500.0,0.00014191,2]
[353750154,1740009049392,-1287.11,0.00014191,2]
[353750155,1740009049404,-890.41,0.00014191,2]
[353750156,1740009049415,-500.0,0.00014191,2]
[353750157,1740009049425,-7438.69753278,0.00014238,2]
[353750158,1740009049435,-500.0,0.00014247,2]
[353750159,1740009049446,-500.0,0.00014273,2]
[353750160,1740009049456,-500.0,0.00014273,2]
[353750161,1740009049466,-500.0,0.00014273,2]
[353750162,1740009049476,-500.0,0.00014273,2]
[353750163,1740009049486,-500.0,0.00014273,2]
[353750164,1740009049496,-500.0,0.00014273,2]
[353750165,1740009049507,-500.0,0.00014273,2]
[353750166,1740009049518,-500.0,0.00014273,2]
[353750167,1740009049529,-500.0,0.00014273,2]
[353750168,1740009049540,-500.0,0.00014273,2]
[353750169,1740009049551,-500.0,0.00014273,2]
[353750170,1740009049562,-450.5749384,0.00014273,2]
[353750171,1740009049571,-500.0,0.00014273,2]
[353750172,1740009049582,-580.87,0.00014273,2]
[353750173,1740009049592,-500.0,0.00014273,2]
[353750174,1740009049603,-16515.76,0.00014273,2]
[353750175,1740009049613,-615.53,0.00014273,2]
[353750176,1740009049623,-607.15,0.00014273,2]
[353750177,1740009049633,-500.0,0.00014273,2]
[353750178,1740009049643,-500.0,0.00014273,2]
[353750179,1740009049653,-500.0,0.00014273,2]
[353750180,1740009049663,-191.39475227,0.00014273,2]
[353750181,1740009049672,-4607.42,0.00014273,2]
[353750182,1740009049682,-657.55,0.00014273,2]
[353750183,1740009049692,-679.91,0.00014273,2]
[353750184,1740009049702,-500.0,0.00014273,2]
[353750185,1740009049712,-1021.52,0.00014273,2]
[353750186,1740009049722,-1884.79,0.00014273,2]
[353750187,1740009049732,-500.0,0.00014273,2]
[353750188,1740009049742,-1274.52,0.00014273,2]
[353750189,1740009049752,-1158.62,0.00014273,2]
[353750190,1740009049762,-760.75,0.00014273,2]
[353750191,1740009049771,-500.0,0.00014273,2]
[353750192,1740009049781,-606.15,0.00014273,2]
[353750193,1740009049791,-500.0,0.00014273,2]
[353750194,1740009049801,-500.0,0.00014273,2]
[353750195,1740009049811,-500.0,0.00014273,2]
[353750196,1740009049822,-500.0,0.00014273,2]
[353750197,1740009049832,-500.0,0.00014273,2]
[353750198,1740009049843,-646.82,0.00014273,2]
[353750199,1740009049852,-704.58,0.00014273,2]
[353750200,1740009049862,-500.0,0.00014273,2]
[353750201,1740009049872,-1667.33,0.00014273,2]
[353750202,1740009049882,-504.47,0.00014273,2]
[353750203,1740009049892,-500.0,0.00014273,2]
[353750204,1740009049902,-500.0,0.00014273,2]
[353750205,1740009049912,-6048.84,0.00014273,2]
[353750206,1740009049922,-500.0,0.00014273,2]
[353750207,1740009049932,-500.0,0.00014273,2]
[353750208,1740009049942,-500.0,0.00014273,2]
[353750209,1740009049951,-500.0,0.00014273,2]
[353750210,1740009049961,-1287.11,0.00014273,2]
[353750211,1740009049971,-890.41,0.00014273,2]
[353750212,1740009049980,-391.20026402,0.00014273,2]
[353750213,1740009049990,-284.54556735,0.00014323,2]
[353750214,1740009050000,-500.0,0.00014356,2]
[353750215,1740009050010,-500.0,0.00014356,2]
[353750216,1740009050020,-500.0,0.00014356,2]
[353750217,1740009050031,-500.0,0.00014356,2]
[353750218,1740009050041,-500.0,0.00014356,2]
[353750219,1740009050050,-500.0,0.00014356,2]
[353750220,1740009050060,-500.0,0.00014356,2]
[353750221,1740009050070,-500.0,0.00014356,2]
[353750222,1740009050080,-500.0,0.00014356,2]
[353750223,1740009050090,-500.0,0.00014356,2]
[353750224,1740009050100,-500.0,0.00014356,2]
[353750225,1740009050110,-580.87,0.00014356,2]
[353750226,1740009050120,-500.0,0.00014356,2]
[353750227,1740009050131,-16515.76,0.00014356,2]
[353750228,1740009050141,-615.53,0.00014356,2]
[353750229,1740009050151,-607.15,0.00014356,2]
[353750230,1740009050162,-500.0,0.00014356,2]
[353750231,1740009050171,-500.0,0.00014356,2]
[353750232,1740009050181,-4607.42,0.00014356,2]
[353750233,1740009050190,-657.55,0.00014356,2]
[353750234,1740009050200,-679.91,0.00014356,2]
[353750235,1740009050209,-500.0,0.00014356,2]
[353750236,1740009050220,-1021.52,0.00014356,2]
[353750237,1740009050231,-1884.79,0.00014356,2]
[353750238,1740009050241,-500.0,0.00014356,2]
[353750239,1740009050251,-1274.52,0.00014356,2]
[353750240,1740009050260,-1158.62,0.00014356,2]
[353750241,1740009050270,-760.75,0.00014356,2]
[353750242,1740009050280,-500.0,0.00014356,2]
[353750243,1740009050290,-606.15,0.00014356,2]
[353750244,1740009050301,-500.0,0.00014356,2]
[353750245,1740009050313,-500.0,0.00014356,2]
[353750246,1740009050323,-500.0,0.00014356,2]
[353750247,1740009050334,-500.0,0.00014356,2]
[353750248,1740009050474,-405.11,0.00014356,2]
[353750249,1740009050484,-646.82,0.00014356,2]
[353750250,1740009050493,-704.58,0.00014356,2]
[353750251,1740009050503,-500.0,0.00014356,2]
[353750252,1740009050513,-1667.33,0.00014356,2]
[353750253,1740009050522,-504.47,0.00014356,2]
[353750254,1740009050530,-500.0,0.00014356,2]
[353750255,1740009050539,-500.0,0.00014356,2]
[353750256,1740009050549,-6048.84,0.00014356,2]
[353750257,1740009050558,-500.0,0.00014356,2]
[353750258,1740009050568,-500.0,0.00014356,2]
[353750259,1740009050577,-500.0,0.00014356,2]
[353750260,1740009050587,-500.0,0.00014356,2]
[353750261,1740009050596,-1287.11,0.00014356,2]
[353750262,1740009050606,-890.41,0.00014356,2]
[353750263,1740009050616,-557.1188801,0.00014361,2]
[353750264,1740009050625,-557.1188801,0.00014361,2]
[353750265,1740009050634,-557.1188801,0.00014361,2]
[353750266,1740009050644,-557.1188801,0.00014361,2]
[353750267,1740009050653,-557.1188801,0.00014361,2]